bitfinex/quotes_BTCUSD_20240731
["timestamp","ask_amount","ask_price","bid_price","bid_amount"]
[1722454029674,0.022,65898.0,65891.0,0.14955172]
[1722454029675,0.08437459,65893.0,65891.0,0.14955172]
[1722454029874,0.00961047,65893.0,65891.0,0.14955172]
[1722454030071,0.00961047,65892.0,65891.0,0.14955172]
[1722454030487,0.00961047,65892.0,65883.0,0.303565]
[1722454030488,0.00961047,65888.0,65883.0,0.303565]
[1722454030690,0.002,65895.0,65884.0,0.14955172]
[1722454030691,0.00961047,65887.0,65884.0,0.14955172]
[1722454030901,0.22653212,65890.0,65884.0,0.14955172]
[1722454030902,0.00961047,65885.0,65884.0,0.14955172]
[1722454031309,0.00961047,65885.0,65871.0,0.303621]
[1722454031310,0.0015542,65889.0,65862.0,0.0656]
[1722454031311,0.00961047,65870.0,65862.0,0.0656]
[1722454031516,0.02,65876.0,65858.0,0.0782]
[1722454031517,0.08437459,65868.0,65863.0,0.14955172]
[1722454031721,0.0758,65873.0,65865.0,0.30365]
[1722454031722,0.00961047,65873.0,65865.0,0.30365]
[1722454031919,0.01,65868.0,65860.0,0.00892975]
[1722454032147,0.01,65868.0,65858.0,0.0656]
[1722454032148,0.02961047,65868.0,65861.0,0.14955172]
[1722454032355,0.00961047,65862.0,65857.0,0.009394]
[1722454032749,0.01,65865.0,65858.0,0.14955172]
[1722454033351,0.002,65873.0,65857.0,0.01835274]
[1722454033352,0.00961047,65862.0,65857.0,0.01835274]
[1722454033682,0.01,65863.0,65858.0,0.151839]
[1722454033881,0.01,65863.0,65857.0,0.01835274]
[1722454034163,0.02961047,65863.0,65857.0,0.01835274]
[1722454034321,0.00961047,65862.0,65857.0,0.01835274]
[1722454034546,0.01,65872.0,65858.0,0.15258799]
[1722454034733,0.02961047,65879.0,65860.0,0.28725172]
[1722454034949,0.00961047,65877.0,65861.0,0.0030356]
[1722454035138,0.01,65861.0,65857.0,0.01835274]
[1722454035347,0.01,65862.0,65861.0,0.151833]
[1722454035549,0.0817,65873.0,65872.0,0.151809]
[1722454035745,0.0817,65873.0,65857.0,0.009394]
[1722454035746,0.01961047,65868.0,65862.0,0.0161227]
[1722454035948,0.00961047,65860.0,65859.0,0.151839]
[1722454036150,0.0015542,65867.0,65866.0,0.151823]
[1722454036352,0.0015542,65867.0,65866.0,0.6698566]
[1722454036590,0.00961047,65880.0,65866.0,0.2143876]
[1722454036776,0.00961047,65880.0,65879.0,0.151793]
[1722454037121,0.00961047,65878.0,65876.0,0.303599]
[1722454037290,0.08437459,65878.0,65867.0,0.22825172]
[1722454037493,0.07476412,65878.0,65877.0,0.455394]
[1722454037712,0.0663,65887.0,65886.0,0.151777]
[1722454037713,0.01,65887.0,65886.0,0.151777]
[1722454037915,0.00961047,65883.0,65878.0,0.30134572]
[1722454038048,0.02,65887.0,65878.0,0.30134572]
[1722454038049,0.08437459,65882.0,65881.0,0.151788]
[1722454038257,0.08437459,65882.0,65881.0,0.90849372]
[1722454038258,0.07476412,65882.0,65881.0,0.90849372]
[1722454038495,0.01961047,65887.0,65886.0,0.151777]
[1722454038496,0.02961047,65887.0,65886.0,0.151777]
[1722454038905,0.00961047,65886.0,65881.0,0.14955172]
[1722454039107,0.07676412,65890.0,65867.0,0.08790833]
[1722454039108,0.00961047,65875.0,65867.0,0.08790833]
[1722454039330,0.00961047,65875.0,65868.0,0.14955172]
[1722454039331,0.00961047,65869.0,65868.0,0.14955172]
[1722454039534,0.01,65873.0,65872.0,0.151809]
[1722454039774,0.00961047,65871.0,65870.0,0.151814]
[1722454039896,0.02,65873.0,65870.0,0.14955172]
[1722454039897,0.0238116,65873.0,65870.0,0.14955172]
[1722454040103,0.0238116,65873.0,65872.0,0.871824]
[1722454040298,0.01961047,65889.0,65872.0,0.871824]
[1722454040299,0.44858472,65889.0,65872.0,0.56595172]
[1722454040537,0.44858472,65889.0,65888.0,0.455317]
[1722454040742,0.00961047,65889.0,65874.0,0.14955172]
[1722454040954,0.07476412,65898.0,65874.0,0.14955172]
[1722454040955,0.00961047,65876.0,65874.0,0.14955172]
[1722454041156,0.07476412,65879.0,65878.0,0.151795]
[1722454041356,0.01,65880.0,65879.0,0.151793]
[1722454041762,0.10061047,65883.0,65882.0,0.151786]
[1722454041763,0.00961047,65883.0,65882.0,0.151786]
[1722454041909,0.00961047,65883.0,65874.0,0.14955172]
[1722454042160,0.00961047,65883.0,65882.0,0.151786]
[1722454042362,0.00961047,65883.0,65874.0,0.14955172]
[1722454042363,0.00961047,65879.0,65874.0,0.14955172]
[1722454042560,0.00961047,65879.0,65856.0,0.1594]
[1722454042561,0.01,65858.0,65857.0,0.161237]
[1722454042764,0.02961047,65862.0,65861.0,0.151834]
[1722454042964,0.01,65862.0,65861.0,0.455503]
[1722454043167,0.01,65862.0,65861.0,0.151834]
[1722454043411,0.01,65862.0,65861.0,0.455503]
[1722454043543,0.03381483,65862.0,65858.0,0.303682]
[1722454043745,0.03381483,65862.0,65861.0,0.151834]
[1722454043961,0.02381483,65862.0,65861.0,1.21542901]
[1722454044617,0.02961047,65876.0,65875.0,0.151802]
[1722454044859,0.01,65876.0,65875.0,0.455407]
[1722454045064,0.01,65876.0,65875.0,0.439407]
[1722454045210,0.00961047,65881.0,65880.0,0.455373]
[1722454045416,0.022,65884.0,65880.0,0.455373]
[1722454045417,0.01,65884.0,65882.0,0.151785]
[1722454045618,0.01,65878.0,65867.0,0.065]
[1722454046044,0.002,65882.0,65867.0,0.065]
[1722454046045,0.07476412,65876.0,65868.0,0.14955172]
[1722454046266,0.01,65889.0,65870.0,0.14955172]
[1722454046456,0.01,65889.0,65869.0,0.2737]
[1722454046457,0.02961047,65900.0,65899.0,0.455241]
[1722454046658,0.02961047,65900.0,65899.0,0.758735]
[1722454046659,0.02896335,65900.0,65899.0,0.758735]
[1722454046868,0.01,65902.0,65899.0,0.151747]
[1722454047075,0.01,65900.0,65899.0,0.151747]
[1722454047306,0.17728206,65901.0,65900.0,0.151745]
[1722454047307,0.01961047,65901.0,65900.0,0.151745]
[1722454047507,0.01961047,65901.0,65889.0,0.1462]
[1722454047508,0.00961047,65901.0,65897.0,0.303503]
[1722454047634,0.02961047,65903.0,65901.0,0.151742]
[1722454047838,0.16765825,65902.0,65901.0,0.455227]
[1722454048440,0.15765825,65902.0,65890.0,0.14955172]
[1722454048659,0.07476412,65898.0,65896.0,0.14955172]
[1722454048862,0.16726872,65897.0,65896.0,0.30130372]
[1722454049059,0.15765825,65897.0,65896.0,0.60481172]
[1722454049264,0.15765825,65897.0,65896.0,0.90831972]
[1722454049461,0.16726872,65897.0,65896.0,0.60481172]
[1722454049662,0.18146271,65897.0,65896.0,0.60481172]
[1722454049883,0.18146271,65897.0,65896.0,0.90831972]
[1722454050248,0.19107318,65897.0,65896.0,0.14955172]
[1722454050452,0.18146271,65897.0,65896.0,0.90832172]
[1722454050819,0.18146271,65897.0,65896.0,1.21182972]
[1722454051462,0.02380446,65897.0,65896.0,1.21182972]
[1722454051665,0.02380446,65897.0,65896.0,1.50852972]
[1722454051870,0.002,65915.0,65896.0,0.44664125]
[1722454051871,0.01,65915.0,65896.0,0.44664125]
[1722454052072,0.15762886,65914.0,65898.0,0.14955172]
[1722454052183,0.15762886,65914.0,65913.0,0.151715]
[1722454052385,0.15762886,65914.0,65910.0,0.151721]
[1722454052606,0.08437459,65912.0,65911.0,0.14955172]
[1722454052812,0.00961047,65901.0,65899.0,0.14955172]
[1722454053059,0.00961047,65894.0,65889.0,0.0798]
[1722454053308,0.15764686,65900.0,65890.0,0.14955172]
[1722454053309,0.07476412,65895.0,65890.0,0.14955172]
[1722454053538,0.16728046,65894.0,65890.0,0.14955172]
[1722454053820,0.07476412,65895.0,65875.0,0.4715]
[1722454053821,0.00961047,65884.0,65879.0,0.0627]
[1722454054058,0.00961047,65884.0,65880.0,0.455373]
[1722454054059,0.07476412,65881.0,65880.0,0.455373]
[1722454054289,0.15769264,65882.0,65881.0,0.151788]
[1722454054540,0.15769466,65882.0,65879.0,0.14955172]
[1722454054776,0.15769466,65881.0,65880.0,0.30437817]
[1722454055020,0.02961047,65887.0,65886.0,0.151777]
[1722454055255,0.05887939,65887.0,65886.0,0.151777]
[1722454055715,0.05887939,65887.0,65886.0,0.455331]
[1722454055951,0.16769294,65887.0,65886.0,0.455331]
[1722454056200,0.18730341,65887.0,65886.0,0.455331]
[1722454056429,0.15769294,65887.0,65886.0,1.21199072]
[1722454056667,0.15768528,65893.0,65892.0,0.455289]
[1722454056923,0.00961047,65899.0,65892.0,0.14955172]
[1722454057164,0.002,65903.0,65892.0,0.14955172]
[1722454057165,0.15767213,65898.0,65897.0,0.758757]
[1722454057469,0.00961047,65902.0,65901.0,0.151742]
[1722454057645,0.00961047,65899.0,65898.0,0.455246]
[1722454057876,0.1576504,65901.0,65900.0,0.30349]
[1722454058096,0.00961047,65906.0,65900.0,0.14955172]
[1722454058314,0.00961047,65906.0,65895.0,0.2737]
[1722454058315,0.18675665,65905.0,65904.0,0.151735]
[1722454058540,0.1576436,65905.0,65904.0,0.30128672]
[1722454058754,0.1576436,65905.0,65904.0,0.90822872]
[1722454059201,0.15764169,65905.0,65904.0,0.14955172]
[1722454059427,0.15763557,65905.0,65904.0,0.30128672]
[1722454059665,0.00961047,65915.0,65909.0,0.303448]
[1722454059898,0.15763204,65914.0,65913.0,0.455145]
[1722454060149,0.00961047,65913.0,65912.0,0.455151]
[1722454060380,0.15763204,65913.0,65912.0,0.758585]
[1722454060623,0.00961047,65916.0,65915.0,0.15171]
[1722454061056,0.00961047,65912.0,65910.0,0.303442]
[1722454061293,0.00961047,65914.0,65913.0,0.455145]
[1722454061533,0.00961047,65914.0,65913.0,0.151715]
[1722454061753,0.00961047,65914.0,65910.0,0.45299372]
[1722454061754,0.00961047,65906.0,65901.0,0.0089703]
[1722454061984,0.00961047,65902.0,65901.0,0.14955172]
[1722454062208,0.00961047,65906.0,65905.0,0.151733]
[1722454062436,0.00961047,65905.0,65904.0,0.151735]
[1722454062669,0.00961047,65905.0,65904.0,0.455206]
[1722454062903,0.00961047,65906.0,65905.0,0.151733]
[1722454063142,0.00961047,65902.0,65901.0,0.30129372]
[1722454063547,0.00961047,65906.0,65905.0,0.151733]
[1722454063825,0.07476412,65907.0,65905.0,0.151733]
[1722454064013,0.07476412,65907.0,65901.0,0.14955172]
[1722454064014,0.00961047,65902.0,65901.0,0.14955172]
[1722454064211,0.07476412,65907.0,65904.0,0.151735]
[1722454064212,0.00961047,65905.0,65904.0,0.151735]
[1722454064459,0.00961047,65905.0,65901.0,0.14955172]
[1722454064460,0.07476412,65907.0,65906.0,0.151731]
[1722454064744,0.07476412,65907.0,65901.0,0.15258603]
[1722454064745,0.00961047,65906.0,65905.0,0.4552]
[1722454064949,0.00961047,65908.0,65907.0,0.151728]
[1722454065149,0.00961047,65903.0,65902.0,0.30128972]
[1722454065378,0.00961047,65903.0,65902.0,0.60476972]
[1722454065511,0.00961047,65906.0,65905.0,0.151733]
[1722454066233,0.00961047,65906.0,65903.0,0.151737]
[1722454066234,0.00961047,65904.0,65903.0,0.151737]
[1722454066441,0.00961047,65904.0,65902.0,0.14955172]
[1722454066655,0.00961047,65896.0,65894.0,0.00905457]
[1722454066800,0.00961047,65892.0,65884.0,0.066]
[1722454067022,0.00961047,65886.0,65880.0,0.58626488]
[1722454067269,0.02,65887.0,65881.0,0.14955172]
[1722454067270,0.00961047,65884.0,65881.0,0.14955172]
[1722454067472,0.1432,65897.0,65884.0,0.151781]
[1722454067473,0.02380763,65885.0,65884.0,0.151781]
[1722454067702,0.02380763,65885.0,65884.0,0.60489572]
[1722454067911,0.02380763,65885.0,65884.0,0.30133272]
[1722454068107,0.00961047,65880.0,65879.0,0.151793]
[1722454068307,0.02380763,65885.0,65881.0,0.303577]
[1722454068308,0.01116467,65884.0,65881.0,0.303577]
[1722454068508,0.0015542,65884.0,65881.0,0.151787]
[1722454068735,0.00961047,65880.0,65879.0,0.151792]
[1722454068978,0.00961047,65882.0,65880.0,0.15179]
[1722454069178,0.00961047,65880.0,65876.0,0.303597]
[1722454069380,0.0015542,65881.0,65868.0,0.07176878]
[1722454069381,0.00961047,65874.0,65869.0,0.14955172]
[1722454069589,0.00961047,65872.0,65869.0,0.14955172]
[1722454069872,0.00961047,65870.0,65869.0,0.30136772]
[1722454070104,0.00961047,65870.0,65869.0,0.14955172]
[1722454070316,0.00961047,65870.0,65860.0,0.3368]
[1722454070317,0.00961047,65867.0,65860.0,0.0631]
[1722454070523,0.15771519,65870.0,65857.0,0.009394]
[1722454070524,0.00961047,65859.0,65857.0,0.009394]
[1722454070728,0.00961047,65862.0,65857.0,0.009394]
[1722454070930,0.02,65869.0,65859.0,0.303677]
[1722454070931,0.00961047,65864.0,65859.0,0.303677]
[1722454071143,0.15774275,65863.0,65860.0,0.14955172]
[1722454071372,0.00961047,65862.0,65820.0,0.34529362]
[1722454071586,0.02381426,65863.0,65862.0,0.151832]
[1722454071999,0.02381426,65863.0,65862.0,0.90871372]
[1722454072201,0.02381426,65863.0,65862.0,0.14955172]
[1722454072409,0.00961047,65859.0,65851.0,0.2737]
[1722454072645,0.00961047,65857.0,65856.0,0.151846]
[1722454072853,0.00961047,65857.0,65852.0,0.14955172]
[1722454072854,0.0015542,65858.0,65853.0,0.303703]
[1722454073053,0.00961047,65861.0,65857.0,0.151843]
[1722454073262,0.00961047,65860.0,65857.0,0.151843]
[1722454073463,0.00961047,65860.0,65856.0,0.303691]
[1722454073703,0.02381426,65863.0,65857.0,0.00303621]
[1722454073704,0.02917689,65859.0,65857.0,0.00303621]
[1722454073899,0.01,65862.0,65857.0,0.00303621]
[1722454073900,0.0015542,65858.0,65857.0,0.00303621]
[1722454074109,0.0015542,65861.0,65857.0,0.00303621]
[1722454074320,0.0015542,65861.0,65860.0,0.455511]
[1722454074524,0.0015542,65861.0,65858.0,0.151839]
[1722454074673,0.0015542,65861.0,65860.0,0.151837]
[1722454074876,0.02381426,65863.0,65861.0,0.151834]
[1722454075081,0.02381426,65863.0,65862.0,0.15486811]
[1722454075278,0.02381426,65863.0,65862.0,0.00303611]
[1722454075492,0.02381426,65863.0,65862.0,0.15486811]
[1722454075645,0.02381426,65863.0,65862.0,0.76219811]
[1722454075865,0.02381426,65863.0,65862.0,0.91174983]
[1722454076085,0.02381426,65863.0,65862.0,1.23841483]
[1722454076518,0.02961047,65877.0,65862.0,0.17558783]
[1722454076726,0.07476412,65896.0,65877.0,0.151796]
[1722454076727,0.01,65882.0,65877.0,0.151796]
[1722454076930,0.0627,65885.0,65884.0,0.151781]
[1722454077147,0.09491047,65887.0,65886.0,0.151777]
[1722454077148,0.0753,65887.0,65886.0,0.151777]
[1722454077521,0.0753,65887.0,65875.0,0.0628]
[1722454077522,0.00961047,65889.0,65879.0,0.14955172]
[1722454077857,0.00961047,65889.0,65888.0,0.455317]
[1722454078064,0.00961047,65888.0,65887.0,0.455323]
[1722454078265,0.00961047,65889.0,65888.0,0.151772]
[1722454078480,0.00961047,65893.0,65891.0,0.151765]
[1722454078674,0.09476412,65897.0,65885.0,0.45310772]
[1722454078675,0.08437459,65897.0,65894.0,0.151757]
[1722454078899,0.08437459,65897.0,65895.0,0.0030332]
[1722454078900,0.09437459,65897.0,65895.0,0.0030332]
[1722454079134,0.08437459,65897.0,65896.0,0.151754]
[1722454079332,0.07476412,65897.0,65895.0,0.0030332]
[1722454079567,0.00961047,65895.0,65890.0,0.303534]
[1722454079807,0.00961047,65891.0,65885.0,0.15883865]
[1722454079940,0.07476412,65897.0,65887.0,0.455323]
[1722454079941,0.07476412,65888.0,65887.0,0.455323]
[1722454080174,0.07476412,65897.0,65896.0,0.151754]
[1722454080411,0.07476412,65897.0,65896.0,0.455262]
[1722454080990,0.07476412,65897.0,65896.0,0.151754]
[1722454081194,0.07476412,65897.0,65896.0,0.45829492]
[1722454081827,0.07476412,65897.0,65893.0,0.30352]
[1722454082190,0.07476412,65897.0,65887.0,0.14955172]
[1722454082191,0.00961047,65892.0,65890.0,0.0091981]
[1722454082609,0.07476412,65897.0,65887.0,0.14955172]
[1722454082610,0.00961047,65893.0,65887.0,0.14955172]
[1722454082884,0.07476412,65890.0,65889.0,0.30354]
[1722454083049,0.07476412,65890.0,65889.0,0.90840172]
[1722454083409,0.07476412,65897.0,65896.0,0.151754]
[1722454083629,0.00961047,65894.0,65893.0,0.151761]
[1722454083830,0.07476412,65897.0,65887.0,0.00910202]
[1722454083831,0.00961047,65892.0,65887.0,0.00910202]
[1722454084036,0.07476412,65888.0,65879.0,0.303582]
[1722454084293,0.07476412,65888.0,65879.0,0.455379]
[1722454084294,0.07476412,65880.0,65879.0,0.455379]
[1722454084444,0.07476412,65880.0,65879.0,0.46462877]
[1722454084623,0.07476412,65880.0,65879.0,0.00924977]
[1722454084826,0.07476412,65880.0,65870.0,0.303625]
[1722454085047,0.07476412,65880.0,65871.0,0.0265]
[1722454085249,0.0758,65885.0,65884.0,0.151781]
[1722454085459,0.0636,65893.0,65887.0,0.151775]
[1722454085728,0.0636,65893.0,65866.0,0.07460842]
[1722454085729,0.00961047,65884.0,65866.0,0.07460842]
[1722454085930,0.02,65887.0,65879.0,0.151793]
[1722454085931,0.07476412,65880.0,65879.0,0.151793]
[1722454086133,0.07476412,65880.0,65877.0,0.151796]
[1722454086532,0.07476412,65880.0,65879.0,0.455379]
[1722454086715,0.07476412,65880.0,65879.0,0.151793]
[1722454086928,0.08437459,65880.0,65879.0,0.151793]
[1722454087141,0.08437459,65880.0,65877.0,0.303595]
[1722454087310,0.07476412,65880.0,65867.0,0.14955172]
[1722454087516,0.07476412,65873.0,65872.0,0.151809]
[1722454087718,0.07476412,65873.0,65872.0,0.455428]
[1722454088124,0.07476412,65873.0,65872.0,0.759047]
[1722454089098,0.077,65878.0,65877.0,0.151798]
[1722454089303,0.08437459,65880.0,65879.0,0.151793]
[1722454089304,0.00961047,65880.0,65879.0,0.151793]
[1722454089507,0.00961047,65880.0,65867.0,0.14955172]
[1722454089508,0.00961047,65876.0,65867.0,0.14955172]
[1722454089721,0.022,65879.0,65857.0,0.1693]
[1722454089722,0.00961047,65866.0,65859.0,0.151838]
[1722454089933,0.00961047,65866.0,65862.0,0.151831]
[1722454089934,0.09081078,65866.0,65862.0,0.151831]
[1722454090132,0.00951078,65864.0,65861.0,0.151834]
[1722454090341,0.00951078,65862.0,65858.0,0.14955172]
[1722454090542,0.002,65865.0,65858.0,0.00897272]
[1722454090543,0.00951078,65859.0,65858.0,0.00897272]
[1722454090993,0.07476412,65861.0,65847.0,0.0647]
[1722454091199,0.00951078,65858.0,65849.0,0.303725]
[1722454091399,0.00951078,65858.0,65850.0,0.14955172]
[1722454091622,0.07476412,65854.0,65853.0,0.151851]
[1722454091850,0.07476412,65854.0,65850.0,0.14955172]
[1722454091851,0.00951078,65853.0,65852.0,0.151855]
[1722454092052,0.07476412,65854.0,65851.0,0.151856]
[1722454092266,0.07476412,65854.0,65853.0,0.151853]
[1722454092472,0.07476412,65861.0,65854.0,0.303701]
[1722454092671,0.0293678,65860.0,65855.0,0.30673237]
[1722454092898,0.0293678,65860.0,65856.0,0.30369]
[1722454093106,0.07476412,65861.0,65859.0,0.151837]
[1722454093314,0.07476412,65861.0,65856.0,0.303691]
[1722454093529,0.07476412,65861.0,65857.0,0.151844]
[1722454093733,0.07476412,65861.0,65858.0,0.151841]
[1722454094172,0.00951078,65860.0,65858.0,0.151841]
[1722454094378,0.00951078,65856.0,65854.0,0.14955172]
[1722454094599,0.00951078,65856.0,65855.0,0.151848]
[1722454094807,0.00951078,65851.0,65847.0,0.00906241]
[1722454095020,0.00951078,65851.0,65850.0,0.15186]
[1722454095244,0.00951078,65851.0,65848.0,0.45328072]
[1722454095487,0.07476412,65853.0,65852.0,0.151855]
[1722454095942,0.0842749,65853.0,65852.0,0.151855]
[1722454096167,0.00951078,65851.0,65849.0,0.303723]
[1722454096410,0.07476412,65853.0,65843.0,0.00891731]
[1722454096411,0.00951078,65844.0,65843.0,0.00891731]
[1722454096617,0.55713182,65844.0,65843.0,0.00891731]
[1722454096823,0.01,65836.0,65830.0,0.16131]
[1722454097041,0.07476412,65832.0,65830.0,0.009405]
[1722454097251,0.0842749,65832.0,65830.0,0.009405]
[1722454097483,0.11355847,65832.0,65830.0,0.009405]
[1722454097712,0.27875847,65832.0,65830.0,0.009405]
[1722454097929,0.43658343,65832.0,65830.0,0.009405]
[1722454098146,1.19609043,65832.0,65830.0,0.009405]
[1722454098365,1.19609043,65832.0,65805.0,0.303927]
[1722454098366,1.19609043,65832.0,65813.0,0.00925557]
[1722454098367,0.01,65814.0,65813.0,0.00925557]
[1722454098596,0.01,65814.0,65782.0,0.002]
[1722454098597,0.01,65814.0,65794.0,0.00928731]
[1722454098598,0.01,65810.0,65794.0,0.00928731]
[1722454098828,0.07476412,65814.0,65795.0,0.02953875]
[1722454098829,0.0015542,65809.0,65795.0,0.02953875]
[1722454099049,0.10404769,65814.0,65800.0,0.2737]
[1722454099050,0.0015542,65813.0,65800.0,0.2737]
[1722454099304,0.07476412,65807.0,65801.0,0.00303847]
[1722454099561,0.07476412,65814.0,65801.0,0.00303847]
[1722454099562,0.0015542,65806.0,65805.0,0.151964]
[1722454099790,0.0015542,65806.0,65805.0,0.90937172]
[1722454100018,0.07476412,65814.0,65812.0,0.455842]
[1722454100019,0.0015542,65813.0,65812.0,0.455842]
[1722454100453,0.0015542,65813.0,65812.0,0.60539372]
[1722454100657,0.14036412,65832.0,65812.0,0.14955172]
[1722454100658,0.02951078,65827.0,65812.0,0.14955172]
[1722454100859,0.02951078,65827.0,65806.0,0.07748922]
[1722454100860,0.07476412,65820.0,65814.0,0.303884]
[1722454101062,0.07476412,65820.0,65812.0,0.455842]
[1722454101063,0.07476412,65813.0,65812.0,0.455842]
[1722454101266,0.07476412,65813.0,65812.0,0.482342]
[1722454101468,0.07476412,65813.0,65812.0,0.0265]
[1722454101673,0.07476412,65813.0,65805.0,0.00892056]
[1722454101901,0.00951078,65819.0,65818.0,0.151934]
[1722454102101,0.0015542,65819.0,65818.0,0.151934]
[1722454102716,0.0015542,65819.0,65818.0,0.75967]
[1722454102918,0.0015542,65819.0,65814.0,0.303886]
[1722454102919,0.02,65826.0,65824.0,0.151918]
[1722454103134,0.02,65826.0,65808.0,0.2737]
[1722454103135,0.0842749,65823.0,65817.0,0.303871]
[1722454103373,0.0842749,65823.0,65807.0,0.455878]
[1722454103374,0.07476412,65808.0,65807.0,0.455878]
[1722454103579,0.0840542,65822.0,65803.0,0.14955172]
[1722454103580,0.00951078,65811.0,65803.0,0.14955172]
[1722454103811,0.02,65816.0,65809.0,0.151954]
[1722454103812,0.0015542,65810.0,65809.0,0.151954]
[1722454104015,0.01106498,65814.0,65811.0,0.151949]
[1722454104222,0.01106498,65814.0,65806.0,0.303922]
[1722454104223,0.00951078,65811.0,65806.0,0.303922]
[1722454104421,0.0015542,65810.0,65809.0,0.303909]
[1722454104557,0.0015542,65810.0,65809.0,0.455863]
[1722454104759,0.01106498,65812.0,65811.0,0.15195]
[1722454104957,0.01106498,65812.0,65791.0,0.0005]
[1722454104958,0.00951078,65799.0,65791.0,0.0005]
[1722454105183,0.0015542,65798.0,65797.0,0.303965]
[1722454105390,0.0015542,65798.0,65797.0,0.455947]
[1722454105584,0.00951078,65801.0,65792.0,0.14955172]
[1722454105825,0.0015542,65800.0,65792.0,0.14955172]
[1722454106026,0.0015542,65800.0,65799.0,0.455932]
[1722454106227,0.01,65806.0,65802.0,0.303941]
[1722454106431,0.01,65806.0,65803.0,0.151967]
[1722454106741,0.01,65806.0,65793.0,0.30398]
[1722454106742,0.07476412,65799.0,65793.0,0.30398]
[1722454106943,0.01,65796.0,65791.0,0.0005]
[1722454107170,0.0015542,65795.0,65794.0,0.6085588]
[1722454107377,0.0015542,65795.0,65794.0,0.9125378]
[1722454107586,0.02951078,65799.0,65791.0,0.0005]
[1722454107790,0.0858291,65798.0,65791.0,0.152495]
[1722454107997,0.07631832,65798.0,65791.0,0.0005]
[1722454108255,0.0858291,65798.0,65791.0,0.0005]
[1722454108455,0.01,65793.0,65791.0,0.0005]
[1722454108662,0.00951078,65792.0,65791.0,0.0005]
[1722454108871,0.02951078,65792.0,65791.0,0.0005]
[1722454109285,0.03151078,65792.0,65791.0,0.0005]
[1722454109517,0.57019278,65792.0,65791.0,0.0005]
[1722454109744,0.26620478,65792.0,65791.0,0.0005]
[1722454109956,0.87418078,65792.0,65791.0,0.0005]
[1722454110171,0.93418078,65792.0,65791.0,0.0005]
[1722454110381,1.3877205,65792.0,65791.0,0.0005]
[1722454110598,1.0837325,65792.0,65791.0,0.0005]
[1722454111025,0.4757565,65792.0,65791.0,0.0005]
[1722454111232,0.4757565,65792.0,65786.0,0.009405]
[1722454111233,0.63182678,65787.0,65786.0,0.009405]
[1722454111440,0.63182678,65787.0,65778.0,0.0105682]
[1722454111441,0.03151078,65779.0,65778.0,0.0105682]
[1722454111647,0.40785062,65779.0,65778.0,0.0105682]
[1722454111860,0.25582662,65779.0,65778.0,0.0105682]
[1722454112057,0.21906412,65787.0,65778.0,0.0105682]
[1722454112058,0.01,65781.0,65778.0,0.0105682]
[1722454112263,0.01,65781.0,65779.0,0.00303999]
[1722454112264,0.02951078,65781.0,65779.0,0.00303999]
[1722454112472,0.00951078,65779.0,65778.0,0.0105682]
[1722454112679,0.01,65779.0,65778.0,0.0105682]
[1722454112872,0.03106498,65779.0,65778.0,0.0105682]
[1722454113079,0.3346407,65779.0,65778.0,0.0105682]
[1722454113306,0.3330865,65779.0,65778.0,0.0105682]
[1722454113535,0.03151078,65779.0,65778.0,0.0105682]
[1722454113950,0.05535897,65779.0,65778.0,0.0105682]
[1722454114163,0.19805897,65779.0,65778.0,0.0105682]
[1722454115255,0.17421078,65779.0,65778.0,0.0105682]
[1722454115468,0.02951078,65771.0,65770.0,0.1472112]
[1722454115672,0.02951078,65771.0,65770.0,0.4513012]
[1722454115880,0.02951078,65771.0,65768.0,0.152048]
[1722454116102,0.02951078,65769.0,65768.0,0.152048]
[1722454116316,0.02951078,65767.0,65766.0,0.152054]
[1722454116517,0.02951078,65767.0,65760.0,0.0004]
[1722454116725,0.00951078,65766.0,65760.0,0.0004]
[1722454116958,0.01951078,65766.0,65765.0,0.152056]
[1722454117161,0.02951078,65765.0,65764.0,0.152058]
[1722454117365,0.00951078,65763.0,65762.0,0.152062]
[1722454117536,0.02,65765.0,65760.0,0.0004]
[1722454117537,0.01,65765.0,65764.0,0.456175]
[1722454117775,0.01,65765.0,65764.0,0.760292]
[1722454117978,0.01,65769.0,65768.0,0.760247]
[1722454118184,0.01,65773.0,65772.0,0.60816]
[1722454118446,0.01,65773.0,65760.0,0.0004]
[1722454118447,0.01,65761.0,65760.0,0.0004]
[1722454118675,0.01951078,65769.0,65768.0,0.152049]
[1722454118676,0.01,65769.0,65768.0,0.152049]
[1722454118873,0.03106498,65772.0,65760.0,0.14995172]
[1722454119084,0.00951078,65771.0,65761.0,0.14955172]
[1722454119282,0.0015542,65770.0,65768.0,0.304096]
[1722454119488,0.0015542,65770.0,65769.0,0.456141]
[1722454119695,0.0015542,65771.0,65770.0,0.456135]
[1722454119901,0.0015542,65771.0,65770.0,0.760225]
[1722454120109,0.0015542,65771.0,65770.0,1.21386672]
[1722454120521,0.1001,65784.0,65777.0,0.304055]
[1722454120728,0.0901,65784.0,65783.0,0.152014]
[1722454120958,0.0901,65784.0,65771.0,0.14955172]
[1722454120959,0.02951078,65781.0,65780.0,0.456064]
[1722454121177,0.0801,65784.0,65771.0,0.14955172]
[1722454121178,0.00951078,65782.0,65781.0,0.152019]
[1722454121397,0.002,65788.0,65783.0,0.304025]
[1722454121398,0.01,65788.0,65783.0,0.304025]
[1722454121613,0.11951078,65790.0,65771.0,0.14955172]
[1722454121614,0.00951078,65780.0,65779.0,0.152024]
[1722454121825,0.00951078,65780.0,65771.0,0.14955172]
[1722454121826,0.00951078,65776.0,65775.0,0.152033]
[1722454122041,0.00951078,65776.0,65775.0,0.456099]
[1722454122246,0.00951078,65774.0,65771.0,0.00915304]
[1722454122456,0.01106498,65773.0,65772.0,0.15204]
[1722454122904,0.00951078,65773.0,65772.0,0.15204]
[1722454123112,0.00951078,65770.0,65760.0,0.380632]
[1722454123340,0.00951078,65771.0,65770.0,0.152045]
[1722454123542,0.002,65775.0,65762.0,0.17255172]
[1722454123543,0.00951078,65775.0,65762.0,0.17255172]
[1722454123748,0.00951078,65776.0,65775.0,0.152033]
[1722454123876,0.00951078,65773.0,65763.0,0.1]
[1722454124076,0.02951078,65774.0,65773.0,0.152038]
[1722454124299,0.00951078,65776.0,65775.0,0.152033]
[1722454124506,0.002,65780.0,65772.0,0.0030402]
[1722454124507,0.01,65779.0,65772.0,0.0030402]
[1722454124757,0.01,65779.0,65778.0,0.456079]
[1722454125100,0.0015542,65789.0,65782.0,0.304034]